Cogmind - Beta 15 *** ADVENTURER MODE // 2025.05.15 @ 16:26:45 Player: BertMcSee Result: Self-destructed Performance ------------- Evolutions (5) 2500 Regions Visited (6) 1200 Robots Destroyed (53) 265 Value Destroyed (1329) 1329 Prototype IDs (3) 60 Alien Tech Used (0) 0 Bonus (0) 0 TOTAL SCORE: 5354 Bonus ------- None Cogmind --------- Core Integrity 956/1000 Matter 220/300 Energy 109/160 System Corruption 1% Temperature Cool (-91) Movement Walking (200) Ox1 Location -5/Factory Parts ------- > --- POWER (3) -------- Light Nuclear Core > --- PROPULSION (5) --- Titanium Leg Improved Titanium Leg > --- UTILITY (6) ------ Cryofiber Web High-capacity Storage Unit Advanced Visual Processing Unit Advanced Terrain Scanner Terrain Scan Processor > --- WEAPON (3) ------- Gauss Cannon Heavy Rocket Launcher Chainsword > --- INVENTORY (20) --- Light Nuclear Core Improved Titanium Leg Improved Titanium Leg Wheel Large Battery (200) Particle Gun Beamcaster Long-range Proton Cannon Mining Laser Peak State ------------ > --- POWER ------------ Light Ion Engine Light Nuclear Core Enhanced Fission Core > --- PROPULSION ------- Improved Titanium Leg Improved Titanium Leg Improved Titanium Leg Biometal Leg Biometal Leg > --- UTILITY ---------- Cryofiber Web High-capacity Storage Unit Advanced Visual Processing Unit Advanced Terrain Scanner Terrain Scan Processor Advanced ECM Suite > --- WEAPON ----------- Gauss Cannon Heavy Rocket Launcher Chainsword > --- INVENTORY -------- Light Nuclear Core Titanium Leg Improved Titanium Leg Wheel Large Battery Particle Gun Beamcaster Long-range Proton Cannon Mining Laser [Rating: 71] Favorites ----------- Power Light Nuclear Core Engine Light Ion Engine Power Core Light Nuclear Core Propulsion Improved Titanium Leg Leg Improved Titanium Leg Wheel Wheel Flight Unit Xenon Bombardment Thruster Utility Terrain Scan Processor Device Improved Terrain Scanner Storage High-capacity Storage Unit Processor Terrain Scan Processor Weapon Beamcaster Energy Gun Beamcaster Ballistic Gun Assault Rifle Ballistic Cannon Assault Cannon Launcher Heavy Rocket Launcher Special Weapon Mining Laser Slashing Weapon Chainsword Build | -11 -10 -10 -8 -7 -6 -5 ------- Run | Yrd Mat Sub Mat Fac Fac Fac Slots Evolved 10 | . . . 4 2 2 2 Power 2 | . . . 1 . . 1 Propulsion 3 | . . . 2 . 1 . Utility 4 | . . . 1 1 1 1 Weapon 1 | . . . . 1 . . Parts Attached 57 | 8 4 3 27 5 6 4 Power 11 | 1 2 1 4 2 . 1 Engine 6 | 1 2 . 3 . . . Core 5 | . . 1 1 2 . 1 Reactor . | . . . . . . . Propulsion 21 | 2 . . 16 . 1 2 Treads . | . . . . . . . Leg 14 | 2 . . 9 . 1 2 Wheel 1 | . . . 1 . . . Hover . | . . . . . . . Flight 6 | . . . 6 . . . Utility 13 | 3 1 . 3 3 2 1 Device 7 | 2 . . 1 3 1 . Storage 2 | 1 . . . . . 1 Processor 4 | . 1 . 2 . 1 . Hackware . | . . . . . . . Protection . | . . . . . . . Artifact . | . . . . . . . Weapon 12 | 2 1 2 4 . 3 . Energy Gun 2 | . . 1 1 . . . Energy Cannon . | . . . . . . . Ballistic Gun 4 | 2 . 1 1 . . . Ballistic Cannon 3 | . . . 2 . 1 . Launcher 1 | . . . . . 1 . Special Weapon 1 | . 1 . . . . . Impact Weapon . | . . . . . . . Slashing Weapon 1 | . . . . . 1 . Piercing Weapon . | . . . . . . . Special Melee Weapon . | . . . . . . . Unidentified Prototypes 1 | . . . . . . 1 Parts Lost 5 | . 1 . 3 . . 1 Power 1 | . . . . . . 1 Propulsion 2 | . . . 2 . . . Utility 2 | . 1 . 1 . . . Weapon . | . . . . . . . Highest Loss Streak 2 | . 1 . 2 . . 1 To Critical Strikes . | . . . . . . . Average Backups 4 | 3 4 4 4 4 5 6 Power . | . 1 1 . . 1 . Propulsion 1 | 2 1 1 . 1 1 1 Utility . | . 1 1 1 1 . . Weapon 2 | . 1 1 2 1 3 3 Tool/Special . | . . . . . . . Unused Backups 6 | 3 1 . . . . 2 Power . | . . . . . . . Propulsion 4 | 3 1 . . . . . Utility 1 | . . . . . . 1 Weapon 1 | . . . . . . 1 Tool/Special . | . . . . . . . Average Slot Usage (%) 94 | . 93 100 88 99 89 97 Engine 4 | . 14 . 9 7 2 5 Core 9 | . . 13 8 7 10 10 Leg 27 | . 28 28 23 29 27 28 Device 14 | . 17 14 8 18 20 17 Processor 12 | . 3 14 17 11 7 11 Energy Gun 7 | . . 10 4 15 4 . Ballistic Gun 7 | . 27 14 5 . . . Ballistic Cannon 3 | . . . 5 6 6 4 Launcher 1 | . . . . . 4 5 Special Weapon 1 | . . 3 2 . . . Slashing Weapon 1 | . . . . . 4 5 Peak Build Rating 71 | 9 10 18 33 42 55 71 Average Rating 28 | 6 8 16 23 40 46 61 On Entrance 23 | . 9 10 16 33 42 55 Naked Turns . | . . . . . . . Heaviest Build 83 | 15 11 14 23 26 33 83 Greatest Support 113 | 20 20 20 80 80 97 113 Greatest Overweight (x) 5 | . . . 5 . . 1 Average Overweight (x) . | . . . . . . . Largest Inventory Capacity 20 | 8 5 5 5 5 5 20 Average Capacity 5 | 7 5 5 5 5 5 16 Most Carried 9 | 7 5 5 5 5 5 9 Average Carried 4 | 4 4 4 4 4 5 6 Final Capacity 20 | 5 5 5 5 5 5 20 Final Carried 9 | 4 5 5 5 5 5 9 Class Distribution -------------------- 29% | Scavenger-Skirmisher 25% | Scavenger-Mutant 23% | Mutant 11% | Skirmisher 9% | Assassin Dominant Class ---------------- Mutant | -10/Materials Scavenger-Mutant | -10/Subcaves Scavenger-Skirmisher | -8/Materials Scavenger-Skirmisher | -7/Factory Mutant | -6/Factory Assassin | -5/Factory Resources | -11 -10 -10 -8 -7 -6 -5 ----------- Run | Yrd Mat Sub Mat Fac Fac Fac Matter Collected 1698 | 340 167 102 701 125 263 . Remotely . | . . . . . . . Salvage Created 1462 | 157 206 43 747 148 161 . Parts 89 | 9 20 4 36 7 13 . Haulers Intercepted . | . . . . . . . Recyclers Shooed 1 | . 1 . . . . . Parts Field Recycled . | . . . . . . . Retrieved Matter . | . . . . . . . Parts Self-Destructed 8 | . . 8 . . . . Prevented . | . . . . . . . Kills | -11 -10 -10 -8 -7 -6 -5 ------- Run | Yrd Mat Sub Mat Fac Fac Fac Combat Hostiles Destroyed 33 | . 6 1 17 4 5 . Melee 1 | . . . . . 1 . Guns 16 | . 6 1 6 3 . . Cannons 13 | . . . 11 1 1 . AOE 3 | . . . . . 3 . Classes Destroyed 11 | 3 3 1 2 1 1 . Worker 7 | 2 . . 2 . 3 . Builder 5 | . 2 . 1 . 2 . Tunneler 3 | 2 1 . . . . . Recycler 2 | 1 1 . . . . . Operator 1 | . . . . 1 . . Watcher 2 | . . . 1 . 1 . Swarmer 13 | . 5 . 3 2 3 . Grunt 12 | . 1 . 10 1 . . Sentry 5 | . . . 4 1 . . Programmer 2 | . . . . . 2 . Subdweller 1 | . . 1 . . . . Best Kill Streak 5 | 2 5 1 4 3 4 . Combat Bots Only 5 | . 5 1 4 3 3 . Max Kills in Single Turn 3 | 1 2 1 1 1 3 . Gunslinging 1 | . 1 . . . . . Exploded 3 | . . . . . 3 . Melee 1 | . . . . . 1 . Uniques/NPCs Destroyed . | . . . . . . . Combat | -11 -10 -10 -8 -7 -6 -5 -------- Run | Yrd Mat Sub Mat Fac Fac Fac Hostile Shots Fired 203 | . 23 19 95 31 26 9 Missed 64 | . 11 7 25 13 6 2 Hits 139 | . 12 12 70 18 20 7 Melee 2 | . . . . . . 2 Projectile 137 | . 12 12 70 18 20 5 AOE 1 | . 1 . . . . . Critical Strikes 8 | . . . 4 . 2 2 Damage Taken 1825 | . 178 196 787 206 332 126 Core 333 | . 43 42 122 46 36 44 Absorbed by Shields . | . . . . . . . Ignored by Resistances 530 | . 51 58 232 64 91 34 Regen/Repaired (Parts) 93 | . . . . 44 49 . Core Remaining (%) 86 | 100 . 66 77 93 95 . Volleys Fired 123 | 10 24 17 43 11 18 . Largest 3 | 2 2 2 2 3 3 . Hottest 177 | 40 120 175 140 177 177 . Shots Fired 228 | 20 48 24 83 29 24 . Gun 142 | 20 45 13 42 18 4 . Cannon 64 | . . . 38 9 17 . Launcher 3 | . . . . . 3 . Special 19 | . 3 11 3 2 . . Kinetic 176 | 20 45 9 76 9 17 . Thermal 49 | . 3 15 7 20 4 . Explosive 3 | . . . . . 3 . Electromagnetic . | . . . . . . . Robot Hit Streak 24 | 10 24 7 10 14 4 . Robot Miss Streak 2 | 1 2 1 2 1 2 . Penetration Max . | . . . . . . . Secondary Targets 2 | . 2 . . . . . Max Gunslinging Chain 1 | . 1 . . . . . Shots Hit Robots 153 | 16 29 9 59 22 18 . Core Hits 72 | 6 12 2 33 8 11 . Critical Kills . | . . . . . . . Critical Parts Destroyed 2 | . 1 . 1 . . . Critical Strikes 7 | . 1 . 3 2 1 . Burn 2 | . . . . 2 . . Destroy 2 | . 1 . 1 . . . Blast 3 | . . . 2 . 1 . Melee Attacks 10 | . . . . . 10 . Impact . | . . . . . . . Slashing 10 | . . . . . 10 . Piercing . | . . . . . . . Sneak Attacks 5 | . . . . . 5 . Combat Hostiles . | . . . . . . . Follow-up Attacks . | . . . . . . . Damage Inflicted 3474 | 200 380 147 1188 451 1108 . Guns 1521 | 200 380 147 477 317 . . Cannons 1158 | . . . 690 128 340 . Explosions 381 | . . . . . 381 . Melee 387 | . . . . . 387 . Ramming 27 | . . . 21 6 . . Kinetic 2278 | 200 380 105 1125 128 340 . Thermal 543 | . . 42 42 317 142 . Explosive 239 | . . . . . 239 . Electromagnetic . | . . . . . . . Impact . | . . . . . . . Slashing 387 | . . . . . 387 . Piercing . | . . . . . . . Highest Corruption 7 | . . . . . 7 1 Average Corruption 2 | . . . . . 3 1 Corruption Purged . | . . . . . . . Corruption Blocked . | . . . . . . . Effects 13 | . . . . . 11 2 Message Errors 3 | . . . . . 2 1 Matter Fused 2 | . . . . . 2 . Heat Flow Errors 4 | . . . . . 4 . Energy Discharges 1 | . . . . . 1 . Misfires 2 | . . . . . 2 . Alerts 1 | . . . . . . 1 Overload Shots . | . . . . . . . Overflow Damage 224 | . . . . 17 207 . Projectiles 30 | . . . . 17 13 . Explosions 87 | . . . . . 87 . Melee 107 | . . . . . 107 . Knockbacks 10 | . . . 4 2 4 . Impact . | . . . . . . . Kinetic 10 | . . . 4 2 4 . Secondary . | . . . . . . . Self-Inflicted Damage . | . . . . . . . Shots . | . . . . . . . Rammed . | . . . . . . . Targets Rammed 5 | . . . 3 2 . . Kicked 5 | . . . 3 2 . . Crushed . | . . . . . . . Highest Temperature 416 | . 40 26 416 416 193 . Average Temperature 113 | . 15 19 120 168 71 . Received Heat Transfer 747 | . 39 30 540 93 . 45 Effects 6 | . . . 6 . . . Shutdowns 4 | . . . 4 . . . Energy Bleed 1 | . . . 1 . . . Interference 1 | . . . 1 . . . Siege Activations . | . . . . . . . Martial Activations . | . . . . . . . Shielding Activations . | . . . . . . . Robots Disrupted . | . . . . . . . Combat Hostiles . | . . . . . . . Robots Corrupted . | . . . . . . . Combat Hostiles . | . . . . . . . Parts Fried . | . . . . . . . Impact Corruptions . | . . . . . . . Robots Melted . | . . . . . . . Combat Hostiles . | . . . . . . . Parts Melted 1 | . . . . 1 . . Heat Transferred 975 | . . 74 74 777 50 . Parts Sabotaged . | . . . . . . . Parts Stolen . | . . . . . . . Parts Stripped . | . . . . . . . Power Chain Reactions . | . . . . . . . Alert | -11 -10 -10 -8 -7 -6 -5 ------- Run | Yrd Mat Sub Mat Fac Fac Fac Maximum Alert Level . | . . . . . . . Low Security (%) 100 | 100 100 . 100 100 100 100 Level 1 . | . . . . . . . Level 2 . | . . . . . . . Level 3 . | . . . . . . . Level 4 . | . . . . . . . Level 5 . | . . . . . . . High Security . | . . . . . . . Max Security . | . . . . . . . Peak Influence 132 | 5 115 . 77 50 132 . Initial . | . . . . . . . Average 18 | 1 66 . 18 8 20 . Influence Increases 1078 | 25 175 . 479 158 241 . Destroy 0b10 Robot/C 640 | . 120 . 340 80 100 . Destroy 0b10 Robot/NC 100 | 25 20 . 20 5 30 . Destroy Leader 134 | . 20 . 72 10 32 . Successful Hack 55 | . . . 15 18 22 . Disable Machine 27 | . . . 9 . 18 . Destroy Structure 47 | . . . 8 . 39 . Partial Spotted 15 | . . . . 15 . . Lose Combat Pursuer 60 | . 15 . 15 30 . . Influence Decreases 1078 | 25 140 35 479 158 241 . Entered New Map 20 | . . 20 . . . . Time Decay 961 | 25 130 15 392 158 241 . Lost Part 40 | . 10 . 30 . . . Purge Threat 57 | . . . 57 . . . Squads Dispatched 8 | . . . 2 3 2 1 Investigation 4 | . . . 1 2 . 1 Extermination 3 | . . . . 1 2 . Reinforcement 1 | . . . 1 . . . Assault . | . . . . . . . Garrison . | . . . . . . . Intercept . | . . . . . . . Searches Triggered . | . . . . . . . Construction Impeded . | . . . . . . . Haulers Reinforced . | . . . . . . . Active Scanning Responses . | . . . . . . . Cargo Convoy Interrupts . | . . . . . . . Stealth | -11 -10 -10 -8 -7 -6 -5 --------- Run | Yrd Mat Sub Mat Fac Fac Fac Distress Signals . | . . . . . . . Communications Jammed . | . . . . . . . Distress Signals . | . . . . . . . Times Spotted 67 | . 8 14 21 9 8 7 Peak Tracking Total 5 | . 5 5 4 3 3 4 Tactical Retreats 4 | . 1 . 1 1 . 1 Traps | -11 -10 -10 -8 -7 -6 -5 ------- Run | Yrd Mat Sub Mat Fac Fac Fac Traps Triggered 7 | . . . . 3 3 1 Indirectly . | . . . . . . . Trap Hack Attempts . | . . . . . . . Triggered . | . . . . . . . Disarmed 6 | . 6 . . . . . Reprogrammed . | . . . . . . . Reused . | . . . . . . . Traps Extracted . | . . . . . . . Installed . | . . . . . . . Triggered . | . . . . . . . Machines | -11 -10 -10 -8 -7 -6 -5 ---------- Run | Yrd Mat Sub Mat Fac Fac Fac Machines Disabled 3 | . . . 1 . 2 . Max in Single Turn 1 | . . . 1 . 1 . Machines Repaired . | . . . . . . . Machines Dismantled . | . . . . . . . Machines Sabotaged . | . . . . . . . Overloaded Fab Kills . | . . . . . . . Hacking | -11 -10 -10 -8 -7 -6 -5 --------- Run | Yrd Mat Sub Mat Fac Fac Fac Machines Accessed 15 | . 1 . 4 5 3 2 Terminals 9 | . 1 . 2 4 2 . Fabricators 1 | . . . . . . 1 Repair Stations 2 | . . . . 1 1 . Recycling Units 1 | . . . . . . 1 Scanalyzers 2 | . . . 2 . . . Garrison Access . | . . . . . . . Total Hacks 46 | . 5 . 17 13 6 5 Successful 28 | . 2 . 14 7 2 3 Failed 18 | . 3 . 3 6 4 2 Catastrophic 1 | . . . . 1 . . Database Lockouts . | . . . . . . . Manual . | . . . . . . . Terminals 25 | . 5 . 8 8 4 . Fabricators 2 | . . . . . . 2 Repair Stations 7 | . . . . 5 2 . Recycling Units 3 | . . . . . . 3 Scanalyzers 9 | . . . 9 . . . Garrison Access . | . . . . . . . Terminal Hacks 12 | . 2 . 6 4 . . Prototype ID Bank 1 | . . . . 1 . . Open DSF 1 | . . . . 1 . . Branch Access Points 1 | . . . 1 . . . Alert Level 2 | . . . 2 . . . Unreport Threat 1 | . . . 1 . . . Locate Traps 1 | . 1 . . . . . Disarm Traps 1 | . 1 . . . . . Dispatch Records 1 | . . . 1 . . . Surveillance Status 1 | . . . . 1 . . Recall Investigation 1 | . . . 1 . . . Zone Layout 1 | . . . . 1 . . Fabricator Hacks 1 | . . . . . . 1 Build 1 | . . . . . . 1 Repair Station Hacks 5 | . . . . 3 2 . Scan Component 3 | . . . . 2 1 . Repair 2 | . . . . 1 1 . Recycling Unit Hacks 2 | . . . . . . 2 Report Inventory 1 | . . . . . . 1 Retrieve Components 1 | . . . . . . 1 Scanalyzer 8 | . . . 8 . . . Insert Component 4 | . . . 4 . . . Analyze 4 | . . . 4 . . . Garrison Access Hacks . | . . . . . . . Unauthorized Hacks . | . . . . . . . Terminals . | . . . . . . . Fabricators . | . . . . . . . Repair Stations . | . . . . . . . Recycling Units . | . . . . . . . Scanalyzers . | . . . . . . . Garrison Access . | . . . . . . . Data Cores Recovered 1 | . . . . 1 . . Used . | . . . . . . . Hacking Detections 12 | . 1 . 4 3 3 1 Full Trace Events 3 | . . . 1 1 . 1 Feedback Events 1 | . . . . . . 1 Corruption 1 | . . . . . . 1 Feedback Blocked . | . . . . . . . Robot Schematics Acquired . | . . . . . . . Robots Built . | . . . . . . . Authchips . | . . . . . . . Time . | . . . . . . . Total Robot Build Rating . | . . . . . . . Part Schematics Acquired 4 | . . . 4 . . . Parts Built 2 | . . . . . . 2 Authchips . | . . . . . . . Time 128 | . . . . . . 128 Total Part Build Rating 16 | . . . . . . 16 Parts Repaired 2 | . . . . 1 1 . Time 66 | . . . . 44 22 . Parts Recycled . | . . . . . . . Recycled Matter . | . . . . . . . Retrieved Matter . | . . . . . . . Retrieved Components . | . . . . . . . Parts Scanalyzed 4 | . . . 4 . . . Part Schematics Acquired 4 | . . . 4 . . . Parts Damaged . | . . . . . . . Bothacking | -11 -10 -10 -8 -7 -6 -5 ------------ Run | Yrd Mat Sub Mat Fac Fac Fac Used RIF Installer . | . . . . . . . Robots Hacked . | . . . . . . . Non-combat . | . . . . . . . Combat . | . . . . . . . Robot Hacks Applied . | . . . . . . . Relay Couplers Released . | . . . . . . . Fabnet Peak Effective % . | . . . . . . . Robots Rewired . | . . . . . . . Allies Hacked . | . . . . . . . Hacks Repelled . | . . . . . . . Allies | -11 -10 -10 -8 -7 -6 -5 -------- Run | Yrd Mat Sub Mat Fac Fac Fac Total Allies . | . . . . . . . Largest Group . | . . . . . . . Highest-Rated Group . | . . . . . . . Highest-Rated Ally . | . . . . . . . Total Orders . | . . . . . . . Ally Attacks . | . . . . . . . Total Damage . | . . . . . . . Kills . | . . . . . . . Allies Corrupted . | . . . . . . . Allies Melted . | . . . . . . . Intel | -11 -10 -10 -8 -7 -6 -5 ------- Run | Yrd Mat Sub Mat Fac Fac Fac Active Infowar (turns) 5733 | 115 294 1722 1365 790 1140 307 Optics 3583 | . . . 1346 790 1140 307 Terrain 5545 | 32 294 1722 1260 790 1140 307 Seismic 189 | 115 74 . . . . . ECM 43 | . . . . 4 18 21 Robot Analysis Total . | . . . . . . . Derelict Logs Recovered . | . . . . . . . Drone Launches . | . . . . . . . Drone Recoveries . | . . . . . . . Exploration | -11 -10 -10 -8 -7 -6 -5 ------------- Run | Yrd Mat Sub Mat Fac Fac Fac Turns Passed 5832 | 214 294 1722 1365 790 1140 307 Spaces Moved 3952 | 145 165 1353 813 528 791 157 Core 15 | 14 . . 1 . . . Treads . | . . . . . . . Legs 3852 | 131 165 1353 727 528 791 157 Wheels . | . . . . . . . Hover . | . . . . . . . Flight 85 | . . . 85 . . . Fastest Speed 31 | 50 120 120 31 130 130 122 Average Speed 123 | 113 120 120 121 130 130 128 Slowest Speed 300 | 120 120 120 300 130 130 200 Overloaded Moves . | . . . . . . . Propulsion Burnouts . | . . . . . . . Robots Hopped 1 | . . . 1 . . . Potential Cave-ins 2 | . . . . . 2 . Cave-ins Triggered . | . . . . . . . Exploration Rate (%) 16 | 6 13 32 40 10 10 4 Regions Visited 6 Branch Regions 1 Pre-discovered Areas 1 | . . 1 . . . . Known Exits Taken . | . . . . . . . Unknown Exits Taken 6 | 1 1 1 1 1 1 . Scrap Searched 7 | . . 7 . . . . Spaces Dug 7 | . . . 3 . 4 . Terrain Destroyed 54 | . . . 7 . 47 . Melee 4 | . . . . . 4 . Projectile 14 | . . . 7 . 7 . AOE 36 | . . . . . 36 . Terrain Rammed . | . . . . . . . Walls Destroyed . | . . . . . . . Machines Disabled . | . . . . . . . Actions | -11 -10 -10 -8 -7 -6 -5 --------- Run | Yrd Mat Sub Mat Fac Fac Fac Total 4599 | 173 206 1404 1091 603 862 260 Wait 371 | . 10 23 170 44 32 92 Move 3944 | 144 164 1352 810 527 790 157 Hop 1 | . . . 1 . . . Pick Up 22 | 8 2 2 2 5 . 3 Fast Attach 40 | 6 1 1 23 1 5 3 Attach 7 | 1 . 1 1 3 . 1 Detach 1 | . . . 1 . . . Swap 39 | 1 3 5 16 6 5 3 Drop 36 | 3 2 3 21 4 2 1 Fire 123 | 10 24 17 43 11 18 . Melee 10 | . . . . . 10 . Ram . | . . . . . . . Kick 5 | . . . 3 2 . . Crush . | . . . . . . . Escape Stasis . | . . . . . . . Rewire . | . . . . . . . Trap . | . . . . . . . Miscellaneous . | . . . . . . . Route ------- -11/Scrapyard -10/Materials -10/Subcaves (discovered 2 exits: *Mat x2) -8/Materials (discovered 2 exits: *Fac / Sto) -7/Factory -6/Factory (discovered 2 exits: *Fac / [*Low]) -5/Factory History --------- Turn | Location | Event 43 | -11/Scrapyard | Discovered new exit (range 15) 215 | -11/Scrapyard | Entered Materials 311 | -10/Materials | Build established: Mutant 466 | -10/Materials | Discovered new exit (range 14) 509 | -10/Materials | Entered Subcaves 510 | -10/Subcaves | Approached by a straggling Scientist 529 | -10/Subcaves | Discovered new exit (range 8) 749 | -10/Subcaves | Ambushed by swarm of Subdwellers 1113 | -10/Subcaves | Build established: Scavenger-Mutant 1408 | -10/Subcaves | A swath of the cavern ceiling suddenly collapsed 1589 | -10/Subcaves | Discovered new exit (range 10) 1601 | -10/Subcaves | Learned location of Zion (-7) 1601 | -10/Subcaves | Met a Zionite searching for "candidates" 1616 | -10/Subcaves | Shifting Twisted Machinery released Sub. Laser 1621 | -10/Subcaves | Shifting Twisted Machinery released Scrap Shield 1843 | -10/Subcaves | Shifting Twisted Machinery released Spk. Treads 1843 | -10/Subcaves | Shifting Twisted Machinery released Sub. Power Source 1955 | -10/Subcaves | Disturbed a concealed Subdweller 1972 | -10/Subcaves | Disturbed a concealed Subdweller 2231 | -10/Subcaves | Entered Materials 2231 | -8/Materials | Evolved 4 slots: Power x1, Propulsion x2, Utility x1 2542 | -8/Materials | Build established: Scavenger-Skirmisher 2898 | -8/Materials | Identified exit to Storage 3289 | -8/Materials | Discovered new exit (range 13) 3596 | -8/Materials | Entered Factory 3596 | -7/Factory | Evolved 2 slots: Utility x1, Weapon x1 4220 | -7/Factory | Discovered new exit (range 19) 4361 | -7/Factory | Repaired Imp. Titanium Leg 4386 | -7/Factory | Entered another Factory area 4386 | -6/Factory | Evolved 2 slots: Propulsion x1, Utility x1 4534 | -6/Factory | Build established: Skirmisher 4562 | -6/Factory | Discovered new exit (range 19) 4639 | -6/Factory | Discovered new exit (range 19) 4882 | -6/Factory | Repaired Imp. Titanium Leg 5055 | -6/Factory | Build established: Mutant 5526 | -6/Factory | Entered another Factory area 5526 | -5/Factory | Evolved 2 slots: Power x1, Utility x1 5613 | -5/Factory | Build established: Assassin 5758 | -5/Factory | Fabricated Biometal Leg (x2) 5833 | -5/Factory | Self-destructed Last Messages --------------- [Achievement: Just What I Needed] 05758_ Fabricator completes Biometal Leg. 05774_ P,LRRAFZNB26/6%J|WISN51